bitfinex/quotes_BTCUSD_20240712
["timestamp","ask_amount","ask_price","bid_price","bid_amount"]
[1720796017046,0.1172771,57950.0,57949.0,0.1589402]
[1720796017047,0.11716305,57950.0,57949.0,0.1589402]
[1720796017249,0.11716305,57950.0,57949.0,0.1632151]
[1720796017470,0.46441935,57950.0,57949.0,0.1632151]
[1720796017677,0.56437625,57950.0,57949.0,0.1632151]
[1720796017903,0.46441935,57950.0,57949.0,0.1002151]
[1720796018326,0.28972505,57950.0,57949.0,0.1002151]
[1720796018529,0.63485005,57950.0,57949.0,0.1002151]
[1720796018748,0.97997505,57950.0,57949.0,0.0229151]
[1720796018948,1.32510005,57950.0,57949.0,0.0229151]
[1720796019098,1.32510005,57950.0,57949.0,0.0186402]
[1720796019517,1.67022505,57950.0,57949.0,0.0186402]
[1720796019665,1.84046245,57950.0,57949.0,0.0186402]
[1720796020346,1.83982759,57950.0,57949.0,0.0186402]
[1720796021175,1.84082759,57950.0,57949.0,0.0186402]
[1720796023701,1.98042759,57950.0,57949.0,0.0186402]
[1720796024087,2.38539188,57950.0,57949.0,0.0186402]
[1720796025084,2.38439188,57950.0,57949.0,0.0186402]
[1720796025317,2.38439188,57950.0,57949.0,0.0126402]
[1720796025318,2.38339188,57950.0,57949.0,0.0126402]
[1720796025560,2.38439188,57950.0,57949.0,0.0146402]
[1720796026166,1.80912948,57950.0,57949.0,0.0146402]
[1720796026293,2.06430768,57950.0,57949.0,0.0146402]
[1720796026914,2.06521258,57950.0,57949.0,0.0146402]
[1720796027125,0.97975275,57950.0,57949.0,0.0148402]
[1720796027351,0.97975275,57950.0,57949.0,0.0750402]
[1720796027577,0.98675275,57950.0,57949.0,0.0750402]
[1720796027819,1.33687775,57950.0,57949.0,0.0126402]
[1720796028049,1.33187775,57950.0,57949.0,0.0126402]
[1720796028248,1.33187775,57950.0,57949.0,0.0146402]
[1720796028490,1.32487775,57950.0,57949.0,0.0146402]
[1720796028891,1.48506371,57950.0,57949.0,0.0146402]
[1720796029107,1.32587775,57950.0,57949.0,0.0146402]
[1720796030238,1.32555488,57950.0,57949.0,0.0146402]
[1720796031064,1.32555488,57950.0,57949.0,0.0148402]
[1720796032109,1.32601972,57950.0,57949.0,0.0148402]
[1720796032266,1.32601972,57950.0,57949.0,0.0146402]
[1720796032624,1.32601972,57950.0,57949.0,0.0148402]
[1720796033222,1.32601972,57950.0,57949.0,0.0146402]
[1720796033423,1.48531794,57950.0,57949.0,0.0146402]
[1720796033556,1.32565438,57950.0,57949.0,0.0146402]
[1720796033995,1.23658917,57950.0,57949.0,0.0146402]
[1720796034162,1.32565647,57950.0,57949.0,0.0146402]
[1720796034370,1.67078147,57950.0,57949.0,0.0146402]
[1720796034832,1.49589387,57950.0,57949.0,0.0146402]
[1720796035107,1.32565647,57950.0,57949.0,0.0146402]
[1720796035824,1.32564811,57950.0,57949.0,0.0146402]
[1720796035964,1.67077311,57950.0,57949.0,0.0146402]
[1720796036847,1.67084314,57950.0,57949.0,0.0146402]
[1720796037167,1.67083503,57950.0,57949.0,0.0146402]
[1720796037344,2.15560811,57950.0,57949.0,0.0146402]
[1720796037756,2.15560811,57950.0,57949.0,0.01155208]
[1720796037899,2.09570811,57950.0,57949.0,0.01155208]
[1720796038103,2.15560811,57950.0,57949.0,0.01155208]
[1720796038384,1.90097243,57950.0,57949.0,0.01155208]
[1720796038495,1.89997243,57950.0,57949.0,0.00955208]
[1720796038961,1.89997243,57950.0,57949.0,0.01055208]
[1720796038962,1.84607243,57950.0,57949.0,0.01055208]
[1720796039119,1.67583503,57950.0,57949.0,0.01055208]
[1720796039319,1.93042156,57950.0,57949.0,0.01055208]
[1720796039940,1.93842156,57950.0,57949.0,0.01055208]
[1720796040379,1.33878955,57950.0,57949.0,0.01055208]
[1720796040566,1.33878786,57950.0,57949.0,0.01055208]
[1720796040774,1.5932963,57950.0,57949.0,0.01055208]
[1720796040939,1.85415026,57950.0,57949.0,0.01055208]
[1720796041147,2.3166587,57950.0,57949.0,0.01055208]
[1720796041541,2.3086587,57950.0,57949.0,0.01055208]
[1720796041746,2.3026587,57950.0,57949.0,0.00955208]
[1720796041968,2.05215026,57950.0,57949.0,0.00955208]
[1720796042315,2.05515026,57950.0,57949.0,0.00965208]
[1720796042425,2.40027526,57950.0,57949.0,0.00965208]
[1720796042663,2.31107657,57950.0,57949.0,0.00965208]
[1720796042865,2.40008615,57950.0,57949.0,0.00965208]
[1720796043281,2.40008613,57950.0,57949.0,0.00965208]
[1720796044325,1.82482373,57950.0,57949.0,0.00965208]
[1720796044608,1.74242373,57950.0,57949.0,0.00965208]
[1720796045639,1.67703857,57950.0,57949.0,0.00965208]
[1720796046078,1.24258917,57950.0,57949.0,0.00965208]
[1720796046204,1.33189721,57950.0,57949.0,0.00965208]
[1720796048252,1.38046069,57950.0,57949.0,0.00965208]
[1720796049256,1.72558569,57950.0,57949.0,0.00965208]
[1720796049458,1.57021269,57950.0,57949.0,0.00965208]
[1720796049658,1.69678473,57950.0,57949.0,0.00965208]
[1720796050022,2.04190973,57950.0,57949.0,0.00965208]
[1720796050173,1.73881927,57950.0,57949.0,0.00965208]
[1720796050349,1.67671927,57950.0,57949.0,0.00965208]
[1720796050554,1.58612125,57950.0,57949.0,0.00965208]
[1720796050940,1.33159427,57950.0,57949.0,0.00965208]
[1720796051143,0.12365727,57950.0,57949.0,0.15025208]
[1720796051557,0.12365727,57950.0,57949.0,0.15453836]
[1720796052175,0.12365727,57950.0,57949.0,0.01393836]
[1720796052399,0.98346927,57950.0,57949.0,0.01393836]
[1720796052612,1.32859427,57950.0,57949.0,0.01393836]
[1720796052811,1.32959427,57950.0,57949.0,0.01565208]
[1720796053055,1.32587363,57950.0,57949.0,0.01565208]
[1720796053415,1.32587363,57950.0,57949.0,0.01665208]
[1720796053416,1.32687363,57950.0,57949.0,0.01665208]
[1720796054484,1.32687363,57950.0,57949.0,0.01685208]
[1720796054642,1.32687363,57950.0,57949.0,0.01665208]
[1720796054844,1.45956099,57950.0,57949.0,0.01665208]
[1720796055052,1.94338599,57950.0,57949.0,0.01665208]
[1720796055280,1.94373805,57950.0,57949.0,0.01665208]
[1720796055748,2.19795662,57950.0,57949.0,0.01665208]
[1720796055931,1.94441821,57950.0,57949.0,0.01665208]
[1720796056133,1.94341821,57950.0,57949.0,0.01065208]
[1720796056674,2.19766398,57950.0,57949.0,0.01065208]
[1720796056853,1.98597662,57950.0,57949.0,0.00965208]
[1720796057005,1.73673085,57950.0,57949.0,0.01065208]
[1720796057212,1.74473085,57950.0,57949.0,0.01065208]
[1720796057613,1.73673085,57950.0,57949.0,0.01065208]
[1720796058192,1.74273085,57950.0,57949.0,0.01065208]
[1720796058875,1.68203085,57950.0,57949.0,0.01065208]
[1720796059197,1.67703085,57950.0,57949.0,0.00965208]
[1720796059397,1.68103085,57950.0,57949.0,0.00965208]
[1720796060004,1.33590585,57950.0,57949.0,0.00985208]
[1720796060416,1.33590585,57950.0,57949.0,0.00965208]
[1720796060997,1.49616056,57950.0,57949.0,0.00965208]
[1720796061321,1.84128556,57950.0,57949.0,0.00965208]
[1720796061879,1.68103085,57950.0,57949.0,0.00965208]
[1720796062503,1.68095223,57950.0,57949.0,0.00965208]
[1720796063043,1.93552894,57950.0,57949.0,0.00965208]
[1720796064155,1.68123356,57950.0,57949.0,0.00965208]
[1720796064384,1.93552894,57950.0,57949.0,0.00965208]
[1720796064722,1.68123356,57950.0,57949.0,0.00965208]
[1720796064921,1.85147096,57950.0,57949.0,0.00965208]
[1720796065121,1.93552894,57950.0,57949.0,0.00965208]
[1720796065339,1.68123356,57950.0,57949.0,0.00965208]
[1720796066447,1.93551187,57950.0,57949.0,0.00965208]
[1720796066845,1.68123356,57950.0,57949.0,0.00965208]
[1720796067801,2.22975856,57950.0,57949.0,0.00965208]
[1720796068002,2.39999596,57950.0,57949.0,0.00965208]
[1720796068203,3.60272096,57950.0,57949.0,0.00965208]
[1720796068449,3.40272096,57950.0,57949.0,0.00965208]
[1720796068797,3.50607837,57950.0,57949.0,0.00965208]
[1720796069361,3.20593438,57950.0,57949.0,0.01056508]
[1720796069489,3.06380138,57950.0,57949.0,0.01156508]
[1720796069689,3.30190138,57950.0,57949.0,0.01056508]
[1720796069891,3.30190138,57950.0,57949.0,0.01156508]
[1720796070194,3.30990138,57950.0,57949.0,0.01156508]
[1720796070420,3.32390138,57950.0,57949.0,0.01156508]
[1720796070791,3.30990138,57950.0,57949.0,0.01156508]
[1720796071823,3.32390138,57950.0,57949.0,0.01156508]
[1720796072384,3.03443532,57950.0,57949.0,0.01156508]
[1720796072659,2.82978006,57950.0,57949.0,0.01156508]
[1720796072789,2.65954266,57950.0,57949.0,0.01156508]
[1720796072989,2.65960321,57950.0,57949.0,0.01156508]
[1720796073230,2.31447821,57950.0,57949.0,0.01156508]
[1720796073582,1.82585321,57950.0,57949.0,0.01156508]
[1720796073781,1.7224958,57950.0,57949.0,0.01156508]
[1720796074561,1.7084958,57950.0,57949.0,0.01156508]
[1720796074779,1.7224958,57950.0,57949.0,0.01156508]
[1720796075102,1.7224958,57950.0,57949.0,0.01176508]
[1720796075299,0.6861177,57950.0,57949.0,0.15176508]
[1720796075498,0.6721177,57950.0,57949.0,0.15076508]
[1720796075796,0.55933917,57950.0,57949.0,0.15076508]
[1720796076013,0.16710771,57950.0,57949.0,0.15479591]
[1720796076188,0.15510771,57950.0,57949.0,0.15479591]
[1720796076387,0.31366971,57950.0,57949.0,0.15479591]
[1720796076795,0.32066971,57950.0,57949.0,0.15479591]
[1720796077141,0.31366971,57950.0,57949.0,0.15479591]
[1720796077588,0.31466971,57950.0,57949.0,0.15479591]
[1720796079191,0.20121417,57950.0,57949.0,0.15479591]
[1720796079443,0.31474113,57950.0,57949.0,0.15479591]
[1720796081014,0.65986613,57950.0,57949.0,0.15479591]
[1720796081215,0.31474113,57950.0,57949.0,0.15479591]
[1720796082353,0.65986613,57950.0,57949.0,0.15479591]
[1720796082675,0.83379562,57950.0,57949.0,0.15479591]
[1720796082864,0.83379653,57950.0,57949.0,0.15479591]
[1720796083099,0.83271039,57950.0,57949.0,0.15076508]
[1720796083248,0.28737122,57950.0,57949.0,0.15076508]
[1720796083451,0.28555803,57950.0,57949.0,0.15076508]
[1720796083653,0.63068303,57950.0,57949.0,0.1540698]
[1720796083853,0.80504584,57950.0,57949.0,0.1540698]
[1720796084065,0.63268303,57950.0,57949.0,0.1540698]
[1720796084456,1.15116368,57950.0,57949.0,0.1540698]
[1720796084785,1.15116999,57950.0,57949.0,0.1540698]
[1720796084916,0.97680803,57950.0,57949.0,0.01076508]
[1720796085125,1.32193303,57950.0,57949.0,0.01056508]
[1720796085363,1.66705803,57950.0,57949.0,0.01056508]
[1720796085769,1.554062,57950.0,57949.0,0.01056508]
[1720796086019,1.6675991,57950.0,57949.0,0.01056508]
[1720796086393,1.69563249,57950.0,57949.0,0.01056508]
[1720796086598,1.69563249,57950.0,57949.0,0.01156508]
[1720796087039,1.69663249,57950.0,57949.0,0.01156508]
[1720796087239,1.69563249,57950.0,57949.0,0.01056508]
[1720796087663,1.69563249,57950.0,57949.0,0.01156508]
[1720796089288,1.6954985,57950.0,57949.0,0.01156508]
[1720796091643,1.6954985,57950.0,57949.0,0.08946508]
[1720796091644,1.3503735,57950.0,57949.0,0.08946508]
[1720796091879,1.3503735,57950.0,57949.0,0.15506508]
[1720796092587,1.23597039,57950.0,57949.0,0.15506508]
[1720796092817,1.35006214,57950.0,57949.0,0.15506508]
[1720796094328,1.00493714,57950.0,57949.0,0.15506508]
[1720796095257,1.17931862,57950.0,57949.0,0.15506508]
[1720796095372,1.00493714,57950.0,57949.0,0.15506508]
[1720796095812,0.89084539,57950.0,57949.0,0.15506508]
[1720796096015,0.31618607,57950.0,57949.0,0.51570259]
[1720796096230,0.14180704,57950.0,57949.0,0.34313659]
[1720796096430,0.29680053,57950.0,57949.0,0.34313659]
[1720796096808,0.14180704,57950.0,57949.0,0.34313659]
[1720796096983,0.29680074,57950.0,57949.0,0.34313659]
[1720796097169,0.29580074,57950.0,57949.0,0.32763008]
[1720796097367,0.29580074,57950.0,57949.0,0.67176108]
[1720796097573,0.29680074,57950.0,57949.0,0.67176108]
[1720796097775,0.14280704,57950.0,57949.0,1.01789208]
[1720796098002,0.14280704,57950.0,57949.0,1.16019629]
[1720796099434,0.14198677,57950.0,57949.0,1.22019629]
[1720796099644,0.14198677,57950.0,57949.0,1.16019629]
[1720796100591,0.14198677,57950.0,57949.0,1.07789208]
[1720796100799,0.14198677,57950.0,57949.0,1.44602308]
[1720796101018,0.15497421,57954.0,57951.0,0.2601]
[1720796101019,0.05166278,57952.0,57951.0,0.2601]
[1720796101253,0.05166278,57957.0,57956.0,0.577733]
[1720796101451,0.07749417,57960.0,57959.0,1.207948]
[1720796101580,0.1033121,57961.0,57960.0,0.862862]
[1720796101784,0.00083,57962.0,57961.0,0.516788]
[1720796102166,0.10409364,57962.0,57961.0,0.0002]
[1720796102364,0.22829379,57962.0,57961.0,0.0002]
[1720796102481,0.07219957,57962.0,57961.0,0.0002]
[1720796102684,0.07219957,57962.0,57959.0,0.382535]
[1720796102889,0.174577,57961.0,57959.0,0.382535]
[1720796103174,0.10320743,57961.0,57959.0,0.382535]
[1720796103364,1.17501088,57960.0,57959.0,0.004]
[1720796103570,1.54589069,57960.0,57959.0,0.004]
[1720796103771,1.39100183,57960.0,57959.0,0.004]
[1720796103970,1.04593683,57960.0,57959.0,0.004]
[1720796104172,1.20065824,57960.0,57959.0,0.014]
[1720796104373,1.54572324,57960.0,57959.0,0.014]
[1720796104596,1.54556595,57960.0,57959.0,0.014]
[1720796104951,1.879625,57960.0,57959.0,0.014]
[1720796105167,1.939625,57960.0,57959.0,0.014]
[1720796105367,1.207937,57950.0,57949.0,0.01056508]
[1720796105646,1.39107,57950.0,57949.0,0.01056508]
[1720796106051,1.45577,57950.0,57949.0,0.01056508]
[1720796106255,1.38477191,57950.0,57949.0,0.01056508]
[1720796106459,1.86063812,57950.0,57949.0,0.01056508]
[1720796106656,2.11073812,57950.0,57949.0,0.01056508]
[1720796106864,2.11073812,57950.0,57949.0,0.02156508]
[1720796107075,2.11256812,57950.0,57949.0,0.02156508]
[1720796107280,2.28652474,57950.0,57949.0,0.01056508]
[1720796107484,2.28280552,57950.0,57949.0,0.01056508]
[1720796108248,2.28351493,57950.0,57949.0,0.01156508]
[1720796108450,2.28951493,57950.0,57949.0,0.01156508]
[1720796108893,2.30168328,57950.0,57949.0,0.01156508]
[1720796109047,2.30168328,57950.0,57949.0,0.01256508]
[1720796109442,2.30068328,57950.0,57949.0,0.01156508]
[1720796109690,2.36468328,57950.0,57949.0,0.01156508]
[1720796109888,2.44398328,57950.0,57949.0,0.01156508]
[1720796110851,2.21374588,57950.0,57949.0,0.01156508]
[1720796111159,2.24572419,57950.0,57949.0,0.01156508]
[1720796111561,2.2456676,57950.0,57949.0,0.01156508]
[1720796111967,2.65080874,57950.0,57949.0,0.01156508]
[1720796112951,3.17793374,57950.0,57949.0,8e-08]
[1720796113155,3.34817114,57950.0,57949.0,8e-08]
[1720796114298,3.34851469,57950.0,57949.0,8e-08]
[1720796114721,3.24478266,57950.0,57949.0,8e-08]
[1720796114922,3.34851684,57950.0,57949.0,8e-08]
[1720796116020,2.018446,57942.0,57941.0,0.002]
[1720796116222,2.29400074,57942.0,57941.0,0.002]
[1720796117031,2.82117274,57942.0,57941.0,1e-06]
[1720796117234,3.2150647,57942.0,57941.0,1e-06]
[1720796117439,2.87014719,57942.0,57941.0,0.004001]
[1720796117636,2.87014719,57942.0,57924.0,0.51068611]
[1720796117637,0.06,57937.0,57924.0,0.51068611]
[1720796117833,2.243696,57940.0,57924.0,0.51068611]
[1720796117834,0.172637,57925.0,57924.0,0.51068611]
[1720796118039,0.51792,57924.0,57923.0,0.009108]
[1720796118325,1.34032361,57924.0,57923.0,0.009108]
[1720796119478,1.34032361,57924.0,57923.0,0.011108]
[1720796119479,1.49488639,57924.0,57923.0,0.011108]
[1720796119741,1.49488639,57924.0,57923.0,0.111108]
[1720796119950,1.68560361,57924.0,57923.0,0.111108]
[1720796120139,1.93570361,57924.0,57923.0,0.111108]
[1720796120754,1.93560361,57924.0,57923.0,0.114108]
[1720796121034,2.10584101,57924.0,57923.0,0.114108]
[1720796121242,2.10584101,57924.0,57923.0,0.112108]
[1720796121457,2.10584101,57924.0,57923.0,0.109108]
[1720796121458,2.10608215,57924.0,57923.0,0.109108]
[1720796121645,2.24558215,57924.0,57923.0,0.109108]
[1720796121859,2.14041796,57924.0,57923.0,0.109108]
[1720796122043,2.30548235,57924.0,57923.0,0.109108]
[1720796122228,2.31779796,57924.0,57923.0,0.109108]
[1720796122552,2.31469796,57924.0,57923.0,0.109108]
[1720796122754,2.08846056,57924.0,57923.0,0.109108]
[1720796123254,2.24284299,57924.0,57923.0,0.109108]
[1720796123516,2.08846056,57924.0,57923.0,0.109108]
[1720796123845,2.24574299,57924.0,57923.0,0.109108]
[1720796124065,1.70466056,57924.0,57923.0,0.109108]
[1720796124234,1.01410056,57924.0,57923.0,0.1201288]
[1720796124433,1.00168495,57924.0,57923.0,0.109208]
[1720796124685,0.89662056,57924.0,57923.0,0.109108]
[1720796124889,1.47543085,57924.0,57923.0,0.109208]
[1720796125060,1.47543085,57924.0,57923.0,0.109108]
[1720796125262,1.34283789,57924.0,57923.0,0.109108]
[1720796125461,1.34683789,57924.0,57923.0,0.109108]
[1720796126005,1.68511789,57924.0,57923.0,0.109108]
[1720796126206,1.76381789,57924.0,57923.0,0.109108]
[1720796126414,1.93505529,57924.0,57923.0,0.110108]
[1720796126606,1.93505529,57924.0,57923.0,0.109108]
[1720796126969,1.99705529,57924.0,57923.0,0.109108]
[1720796127167,1.93605529,57924.0,57923.0,0.109108]
[1720796127372,1.99595529,57924.0,57923.0,0.109108]
[1720796127527,1.93585529,57924.0,57923.0,0.109108]
[1720796127905,1.66068056,57924.0,57923.0,0.109108]
[1720796128112,1.76706968,57924.0,57923.0,0.109108]
[1720796128323,1.77006968,57924.0,57923.0,0.109108]
[1720796128664,1.76906968,57924.0,57923.0,0.109108]
[1720796128867,1.76896968,57924.0,57923.0,0.109108]
[1720796129099,1.90133425,57924.0,57923.0,0.109108]
[1720796129931,1.77286968,57924.0,57923.0,0.109108]
[1720796130556,1.87559174,57924.0,57923.0,0.109108]
[1720796130896,2.80178914,57924.0,57923.0,0.109108]
[1720796131127,2.32826056,57924.0,57923.0,0.109108]
[1720796131332,2.56202822,57924.0,57923.0,0.109108]
[1720796131535,2.49367744,57924.0,57923.0,0.109108]
[1720796131756,2.62197986,57924.0,57923.0,0.109108]
[1720796131962,2.62187986,57924.0,57923.0,0.109108]
[1720796132395,2.49357272,57924.0,57923.0,0.109108]
[1720796132595,2.58343372,57924.0,57923.0,0.109108]
[1720796133459,2.68603297,57924.0,57923.0,0.109108]
[1720796133667,2.53617197,57924.0,57923.0,0.109108]
[1720796133906,2.59617197,57924.0,57923.0,0.109108]
[1720796134108,2.49075981,57924.0,57923.0,0.109108]
[1720796134323,2.59663198,57924.0,57923.0,0.109108]
[1720796134487,2.38816056,57924.0,57923.0,0.109108]
[1720796134694,2.49403663,57924.0,57923.0,0.109108]
[1720796135180,2.66427403,57924.0,57923.0,0.109208]
[1720796135421,2.86427403,57924.0,57923.0,0.109208]
[1720796135687,2.9411896,57924.0,57923.0,0.109208]
[1720796136713,2.7411896,57924.0,57923.0,0.109208]
[1720796137355,2.66427403,57924.0,57923.0,0.109208]
[1720796137944,2.66376216,57924.0,57923.0,0.109208]
[1720796138517,2.71503436,57924.0,57923.0,0.109208]
[1720796138717,2.91503126,57924.0,57923.0,0.109208]
[1720796138932,2.86376216,57924.0,57923.0,0.109208]
[1720796139142,2.96631362,57924.0,57923.0,0.109208]
[1720796139527,2.86376216,57924.0,57923.0,0.109208]
[1720796139734,2.66376216,57924.0,57923.0,0.109208]
[1720796139967,2.5704099,57924.0,57923.0,0.109208]
[1720796140755,2.54477587,57924.0,57923.0,0.109208]
[1720796140958,1.74529587,57924.0,57923.0,0.109208]
[1720796141210,1.63993167,57924.0,57923.0,0.109208]
[1720796141382,1.6949563,57924.0,57923.0,0.109208]
[1720796141703,1.58951056,57924.0,57923.0,0.109208]
[1720796141903,1.74626771,57924.0,57923.0,0.109208]
[1720796142353,1.69499115,57924.0,57923.0,0.109208]
[1720796142735,1.75499115,57924.0,57923.0,0.109208]
[1720796142947,1.20877,57910.0,57901.0,0.51278611]
[1720796143158,1.34127115,57910.0,57901.0,0.51278611]
[1720796143572,1.68663415,57910.0,57901.0,0.0021]
[1720796143770,1.68663415,57910.0,57902.0,0.0001]
[1720796144285,1.6924555,57910.0,57901.0,0.0021]
[1720796144489,1.6924555,57910.0,57901.0,0.002]
[1720796144691,1.69236467,57910.0,57901.0,0.002]
[1720796144907,1.69236467,57910.0,57901.0,0.0021]
[1720796145510,1.69236467,57910.0,57903.0,0.0001]
[1720796145873,1.69836467,57910.0,57903.0,0.0001]
[1720796146102,1.92850207,57910.0,57909.0,0.0145814]
[1720796146300,1.92250207,57910.0,57909.0,0.0145814]
[1720796146453,1.91850207,57910.0,57909.0,0.0145814]
[1720796146655,1.74826467,57910.0,57909.0,0.0145814]
[1720796146900,1.69526467,57910.0,57909.0,0.0145814]
[1720796147523,1.36230515,57910.0,57909.0,0.0769814]
[1720796147852,1.3697394,57910.0,57909.0,0.0769814]
[1720796148429,1.35733592,57910.0,57909.0,0.0769814]
[1720796148649,1.34933592,57910.0,57909.0,0.0768814]
[1720796148829,1.34933592,57910.0,57909.0,0.0769814]
[1720796149033,1.00397292,57910.0,57909.0,0.0769814]
[1720796149577,1.00397292,57910.0,57909.0,0.0146814]
[1720796149697,1.14015459,57910.0,57909.0,0.0146814]
[1720796149898,1.48551759,57910.0,57909.0,0.0146814]
[1720796150144,1.47851759,57910.0,57909.0,0.0146814]
[1720796150338,1.34233592,57910.0,57909.0,0.0147814]
[1720796150514,1.34233592,57910.0,57909.0,0.0156814]
[1720796150868,1.34233592,57910.0,57909.0,0.0146814]
[1720796151071,1.48268616,57910.0,57909.0,0.0146814]
[1720796151586,1.3763059,57910.0,57909.0,0.0146814]
[1720796151789,1.3763059,57910.0,57909.0,0.0156814]
[1720796151790,1.48247958,57910.0,57909.0,0.0156814]
[1720796152386,1.48247958,57910.0,57909.0,0.0157814]
[1720796152618,1.48247958,57910.0,57909.0,0.0156814]
[1720796152619,1.12203541,57910.0,57909.0,0.0156814]
[1720796152801,1.29471641,57910.0,57909.0,0.0156814]
[1720796153132,1.34615477,57910.0,57909.0,0.0156814]
[1720796153327,1.69151777,57910.0,57909.0,0.0146814]
[1720796153574,2.15567981,57910.0,57909.0,0.0146814]
[1720796153777,1.98544241,57910.0,57909.0,0.0146814]
[1720796153975,2.11644452,57910.0,57909.0,0.0146814]
[1720796154368,2.11706884,57910.0,57909.0,0.0156814]
[1720796154528,1.98842824,57910.0,57909.0,0.0156814]
[1720796154731,1.98842824,57910.0,57909.0,0.0146814]
[1720796154732,2.34933588,57910.0,57909.0,0.0146814]
[1720796155360,2.21866564,57910.0,57909.0,0.0146814]
[1720796155564,1.64306524,57910.0,57909.0,0.0146814]
[1720796155786,1.64806524,57910.0,57909.0,0.0146814]
[1720796156197,1.64777861,57910.0,57909.0,0.0146814]
[1720796157149,1.65177861,57910.0,57909.0,0.0146814]
[1720796157853,1.65207685,57910.0,57909.0,0.0146814]
[1720796158663,1.82231425,57910.0,57909.0,0.0146814]
[1720796158973,1.79367685,57910.0,57909.0,0.0146814]
[1720796159175,2.00823856,57910.0,57909.0,0.0146814]
[1720796159400,1.85367685,57910.0,57909.0,0.0146814]
[1720796159779,2.19903985,57910.0,57909.0,0.0146814]
[1720796159961,2.36927725,57910.0,57909.0,0.0146814]
[1720796160760,1.85474313,57910.0,57909.0,0.0146814]
[1720796160964,1.79421112,57910.0,57909.0,0.0146814]
[1720796161448,1.79420652,57910.0,57909.0,0.0146814]
[1720796162713,1.85420652,57910.0,57909.0,0.0146814]
[1720796163091,2.27742052,57910.0,57909.0,0.0146814]
[1720796163296,1.614349,57902.0,57901.0,0.002]
[1720796163480,2.52050541,57902.0,57901.0,0.002]
[1720796163683,2.59368023,57902.0,57901.0,0.002]
[1720796163927,2.53368129,57902.0,57901.0,0.002]
[1720796164167,2.59368129,57902.0,57901.0,0.002]
[1720796164297,2.70165574,57902.0,57901.0,0.002]
[1720796164498,2.90165574,57902.0,57901.0,0.002]
[1720796164829,2.91865574,57902.0,57901.0,0.002]
[1720796165174,2.90165574,57902.0,57901.0,0.002]
[1720796165375,3.53906674,57902.0,57901.0,0.002]
[1720796165582,3.54906674,57902.0,57901.0,0.002]
[1720796166577,3.53896674,57902.0,57901.0,0.002]
[1720796166796,3.40798036,57902.0,57901.0,0.002]
[1720796166993,3.53918683,57902.0,57901.0,0.002]
[1720796167189,3.55318683,57902.0,57901.0,0.002]
[1720796167417,3.54318683,57902.0,57901.0,0.002]
[1720796167612,3.55718683,57902.0,57901.0,0.002]
[1720796168761,3.72208683,57902.0,57901.0,0.002]
[1720796168999,2.159925,57897.0,57896.0,0.009119]
[1720796169205,2.63023894,57897.0,57896.0,0.009119]
[1720796169409,2.63023894,57897.0,57893.0,0.006004]
[1720796169410,1.469103,57894.0,57893.0,0.006004]
[1720796169633,3.12842838,57894.0,57893.0,0.006004]
[1720796169832,3.49866578,57894.0,57893.0,0.006004]
[1720796170040,3.49856475,57894.0,57893.0,0.006004]
[1720796170240,0.158126,57894.0,57893.0,0.006004]
[1720796170461,0.158126,57894.0,57893.0,0.322636]
[1720796170462,0.04622886,57894.0,57893.0,0.322636]
[1720796170693,0.05145304,57900.0,57899.0,0.0001]
[1720796170910,0.05145304,57905.0,57903.0,0.1219]
[1720796171132,0.05145304,57905.0,57897.0,0.0785]
[1720796171133,0.172712,57900.0,57897.0,0.0785]
[1720796171336,0.22417249,57898.0,57897.0,0.0785]
[1720796171556,0.22417249,57898.0,57893.0,0.084504]
[1720796171557,0.518187,57894.0,57893.0,0.084504]
[1720796171767,1.54021049,57894.0,57893.0,0.006004]
[1720796171980,1.75455723,57894.0,57893.0,0.006004]
[1720796172182,1.54011049,57894.0,57893.0,0.006004]
[1720796172802,1.43722599,57894.0,57893.0,0.006004]
[1720796173017,1.29905471,57894.0,57893.0,0.006004]
[1720796173253,1.43740802,57894.0,57893.0,0.006004]
[1720796173509,1.64107385,57894.0,57893.0,0.006004]
[1720796173713,2.15707423,57894.0,57893.0,0.006004]
[1720796173928,2.32731163,57894.0,57893.0,0.006004]
[1720796174279,2.63576925,57894.0,57893.0,0.006004]
[1720796174487,2.54076925,57894.0,57893.0,0.006004]
[1720796174728,2.54176925,57894.0,57893.0,0.006004]
[1720796175132,2.54276925,57894.0,57893.0,0.006004]
[1720796175334,2.44876925,57894.0,57893.0,0.007004]
[1720796175533,1.98943185,57894.0,57893.0,0.007004]
[1720796175849,1.81742799,57894.0,57893.0,0.007004]
[1720796176052,1.82437017,57894.0,57893.0,0.008004]
[1720796176273,2.35183195,57894.0,57893.0,0.008004]
[1720796176473,1.70436524,57894.0,57893.0,0.008004]
[1720796176651,1.59090081,57894.0,57893.0,0.008004]
[1720796176827,1.04174281,57894.0,57893.0,0.008004]
[1720796177429,0.69628481,57894.0,57893.0,0.008004]
[1720796177640,0.69618481,57894.0,57893.0,0.008004]
[1720796177956,0.17829781,57894.0,57893.0,0.008004]
[1720796178290,0.69648481,57894.0,57893.0,0.008004]
[1720796178496,1.04194281,57894.0,57893.0,0.008004]
[1720796178883,0.69648481,57894.0,57893.0,0.008004]
[1720796179020,0.17829781,57894.0,57893.0,0.008004]
[1720796179221,0.17829781,57894.0,57893.0,0.180736]
[1720796179422,0.04005171,57894.0,57893.0,0.01364055]
[1720796179629,0.18162594,57894.0,57893.0,0.18637255]
[1720796179833,0.23304203,57894.0,57893.0,0.18647255]
[1720796180033,0.23304203,57894.0,57893.0,0.25394182]
[1720796180251,0.15457423,57894.0,57893.0,1.07900055]
[1720796180448,0.15457423,57894.0,57893.0,1.13800055]
[1720796180449,0.14857423,57894.0,57893.0,1.13800055]
[1720796180647,0.14857423,57894.0,57893.0,1.07800055]
[1720796180905,0.14957423,57894.0,57893.0,0.73853655]
[1720796181312,0.05258917,57894.0,57893.0,0.80747913]
[1720796181526,0.05258917,57894.0,57893.0,1.38121639]
[1720796181685,0.05958917,57894.0,57893.0,1.38121639]
[1720796182043,0.05958917,57894.0,57893.0,1.72668039]
[1720796182186,0.05158917,57894.0,57893.0,1.72068039]
[1720796182385,0.05258917,57894.0,57893.0,1.72578039]
[1720796182595,0.002,57894.0,57893.0,1.73178039]
[1720796182769,0.0529622,57894.0,57893.0,1.73178039]
[1720796182971,0.0519622,57894.0,57893.0,1.61010581]
[1720796183263,0.05317389,57894.0,57893.0,1.29610581]
[1720796183469,0.05317389,57894.0,57893.0,1.41610581]
[1720796183795,0.05217389,57894.0,57893.0,1.41010581]
[1720796184042,0.05217389,57894.0,57893.0,1.42310581]
[1720796184243,0.05317389,57894.0,57893.0,1.66874321]
[1720796184490,0.05317389,57894.0,57893.0,1.49850581]
[1720796185246,0.05317389,57894.0,57893.0,1.69850581]
[1720796185446,0.05317389,57894.0,57893.0,1.49850581]
[1720796185647,0.0535922,57894.0,57893.0,1.49850581]